bitfinex/quotes_BTCUSD_20250922
["timestamp","ask_amount","ask_price","bid_price","bid_amount"]
[1758571445879,0.0415,112240.0,112230.0,0.71963342]
[1758571446142,0.36933947,112240.0,112230.0,0.74275342]
[1758571446367,0.0415,112240.0,112230.0,0.74275342]
[1758571446633,0.36933947,112240.0,112230.0,0.74275342]
[1758571447319,0.0415,112240.0,112230.0,0.74275342]
[1758571447541,0.36933947,112240.0,112230.0,0.74275342]
[1758571448506,0.36933947,112240.0,112230.0,0.45587342]
[1758571448966,0.54752906,112240.0,112230.0,0.74271342]
[1758571449157,0.21968959,112240.0,112230.0,0.74271342]
[1758571449379,0.54752906,112240.0,112230.0,0.74271342]
[1758571449592,0.21968959,112240.0,112230.0,0.15822795]
[1758571449806,0.57397906,112240.0,112230.0,0.53826795]
[1758571450474,0.57397906,112240.0,112230.0,0.71647342]
[1758571451256,0.57397906,112240.0,112230.0,0.42963342]
[1758571451462,0.57198906,112240.0,112230.0,0.71945342]
[1758571452278,0.57397906,112240.0,112230.0,0.33331342]
[1758571452481,0.57397906,112240.0,112230.0,0.71643342]
[1758571452482,0.24613959,112240.0,112230.0,0.71643342]
[1758571452717,0.24414959,112240.0,112230.0,0.71941342]
[1758571453136,0.0415,112240.0,112230.0,0.74253342]
[1758571454868,0.36933947,112240.0,112230.0,0.74253342]
[1758571455504,0.0415,112240.0,112230.0,0.74253342]
[1758571457958,0.0415,112240.0,112230.0,0.45573342]
[1758571458166,0.0415,112240.0,112230.0,0.74249342]
[1758571459457,0.0415,112240.0,112230.0,1.07033289]
[1758571459963,0.0415,112240.0,112230.0,0.74249342]
[1758571463884,0.0415,112240.0,112230.0,1.17943653]
[1758571464563,0.0415,112240.0,112230.0,0.74249342]
[1758571469792,0.0415,112240.0,112230.0,1.17943653]
[1758571471868,0.0415,112240.0,112230.0,0.79635653]
[1758571472091,0.0415,112240.0,112230.0,1.56463653]
[1758571472677,0.0415,112240.0,112230.0,0.79635653]
[1758571472889,0.0415,112240.0,112230.0,1.56459653]
[1758571474479,0.0415,112240.0,112230.0,1.08295653]
[1758571474675,0.0415,112240.0,112230.0,1.56459653]
[1758571475114,0.0415,112240.0,112230.0,0.79635653]
[1758571475553,0.0415,112240.0,112230.0,0.35941342]
[1758571475776,0.0415,112240.0,112230.0,0.33629342]
[1758571475983,0.50490311,112240.0,112230.0,1.10147342]
[1758571476144,0.50490311,112240.0,112230.0,0.71859342]
[1758571476350,0.06796,112240.0,112230.0,1.10147342]
[1758571477122,0.06796,112240.0,112230.0,1.10446342]
[1758571477769,0.06796,112240.0,112230.0,1.10147342]
[1758571478296,0.06593,112240.0,112230.0,0.62286342]
[1758571478501,0.06796,112240.0,112230.0,0.71918342]
[1758571479306,0.06593,112240.0,112230.0,0.71918342]
[1758571480464,0.06593,112240.0,112230.0,0.33630342]
[1758571480661,0.06796,112240.0,112230.0,1.10143342]
[1758571481102,0.06796,112240.0,112230.0,0.33630342]
[1758571481353,0.06593,112240.0,112230.0,0.71914342]
[1758571481581,0.0415,112240.0,112230.0,0.74368342]
[1758571481869,0.0415,112240.0,112230.0,1.18062653]
[1758571482213,0.0415,112240.0,112230.0,0.74368342]
[1758571485507,0.0415,112240.0,112230.0,0.36084342]
[1758571485683,0.0415,112240.0,112230.0,1.12892342]
[1758571488918,0.0415,112240.0,112230.0,1.56586653]
[1758571491497,0.0415,112240.0,112230.0,1.57497975]
[1758571491914,0.0415,112240.0,112230.0,1.03256342]
[1758571492099,0.0415,112240.0,112230.0,1.12888342]
[1758571492327,0.0415,112240.0,112230.0,1.03256342]
[1758571492508,0.0415,112240.0,112230.0,1.12888342]
[1758571492709,0.0415,112240.0,112230.0,1.66582653]
[1758571493186,0.0415,112240.0,112230.0,1.674946]
[1758571494138,0.02809989,112240.0,112230.0,1.674946]
[1758571494344,0.02809989,112240.0,112230.0,2.014946]
[1758571497325,0.02809989,112240.0,112230.0,1.533266]
[1758571497542,0.02809989,112240.0,112230.0,2.014866]
[1758571498102,0.02809989,112240.0,112230.0,1.246906]
[1758571498322,0.02809989,112240.0,112230.0,2.014866]
[1758571498747,0.02809989,112240.0,112230.0,1.57792289]
[1758571498956,0.02809989,112240.0,112230.0,2.014866]
[1758571499538,0.02809989,112240.0,112230.0,0.80996289]
[1758571499742,0.02809989,112240.0,112230.0,0.75628289]
[1758571499939,0.02809989,112240.0,112230.0,1.21334289]
[1758571500140,0.02809989,112240.0,112230.0,1.674756]
[1758571500355,0.02809989,112240.0,112230.0,1.64116653]
[1758571500560,0.02809989,112240.0,112230.0,1.66563653]
[1758571500758,0.02809989,112240.0,112230.0,1.18403653]
[1758571501075,0.02809989,112240.0,112230.0,1.66563653]
[1758571505383,0.02809989,112240.0,112230.0,1.66559653]
[1758571505824,0.02809989,112240.0,112230.0,0.72258342]
[1758571506026,0.05320989,112240.0,112230.0,1.20111342]
[1758571506205,0.05119989,112240.0,112230.0,1.20417342]
[1758571506412,0.02809989,112240.0,112230.0,0.43637342]
[1758571506654,0.05320989,112240.0,112230.0,1.20111342]
[1758571507496,0.02809989,112240.0,112230.0,1.64111653]
[1758571507726,0.02809989,112240.0,112230.0,1.56926653]
[1758571507940,0.02809989,112240.0,112230.0,1.66554653]
[1758571509783,0.20829948,112240.0,112230.0,0.43331342]
[1758571509992,0.67155259,112240.0,112230.0,0.81382342]
[1758571510429,0.67155259,112240.0,112230.0,0.63561795]
[1758571510641,0.67155259,112240.0,112230.0,0.81382342]
[1758571510840,0.68067713,112240.0,112230.0,0.81382342]
[1758571511080,0.68067713,112240.0,112230.0,0.63565795]
[1758571511285,0.68067713,112240.0,112230.0,0.81386342]
[1758571513114,0.7258485,112240.0,112230.0,0.25313795]
[1758571513326,0.28890539,112240.0,112230.0,0.63565795]
[1758571513565,0.7258485,112240.0,112230.0,0.63565795]
[1758571514150,0.28890539,112240.0,112230.0,0.63543174]
[1758571514368,0.7258485,112240.0,112230.0,0.63543174]
[1758571517435,0.7758485,112240.0,112230.0,0.63543174]
[1758571517864,1.1460004,112240.0,112230.0,0.63539174]
[1758571518292,1.17278586,112240.0,112230.0,0.63539174]
[1758571519673,0.73584275,112240.0,112230.0,0.63539174]
[1758571519943,1.17278586,112240.0,112230.0,0.63539174]
[1758571520705,1.06040124,112240.0,112230.0,0.63741174]
[1758571520957,1.06040124,112240.0,112230.0,0.63539174]
[1758571521560,0.73263275,112240.0,112230.0,0.63539174]
[1758571521762,1.06040124,112240.0,112230.0,0.63539174]
[1758571522005,0.70953275,112240.0,112230.0,0.63741174]
[1758571522146,1.06135124,112240.0,112230.0,0.64044174]
[1758571522643,1.06135124,112240.0,112230.0,0.63741174]
[1758571523836,1.06135124,112240.0,112230.0,0.63539174]
[1758571524329,1.06135124,112240.0,112230.0,0.63741174]
[1758571524539,0.73358275,112240.0,112230.0,0.63741174]
[1758571524748,0.70343085,112240.0,112230.0,0.81864721]
[1758571524979,1.03119934,112240.0,112230.0,0.64044174]
[1758571525510,1.03119934,112240.0,112230.0,0.81864721]
[1758571525917,0.77694975,112240.0,112230.0,0.81864721]
[1758571526152,0.03722443,112240.0,112230.0,1.1690657]
[1758571526908,0.02809989,112240.0,112230.0,0.84129721]
[1758571528178,0.02809989,112240.0,112230.0,1.1690657]
[1758571528387,0.02809989,112240.0,112230.0,0.45881721]
[1758571528604,0.02809989,112240.0,112230.0,0.81856721]
[1758571528806,0.35586838,112240.0,112230.0,0.81856721]
[1758571529217,0.35586838,112240.0,112230.0,0.43616721]
[1758571529422,0.38254838,112240.0,112230.0,0.43111721]
[1758571529628,0.89171646,112240.0,112230.0,0.81347721]
[1758571529818,0.88850646,112240.0,112230.0,0.81347721]
[1758571530745,0.88850646,112240.0,112230.0,0.25291174]
[1758571530955,1.30703973,112240.0,112230.0,0.25291174]
[1758571531177,1.27688783,112240.0,112230.0,0.63527174]
[1758571531786,1.24913783,112240.0,112230.0,0.63527174]
[1758571532047,1.68480822,112240.0,112230.0,0.114]
[1758571532255,1.38382802,112240.0,112230.0,0.114]
[1758571532464,1.71159651,112240.0,112230.0,0.114]
[1758571532666,1.71159651,112240.0,112230.0,0.49636]
[1758571532879,1.38382802,112240.0,112230.0,0.49636]
[1758571533088,1.38382802,112240.0,112230.0,0.54596]
[1758571533288,1.37882802,112240.0,112230.0,0.53996]
[1758571533911,0.72008104,112240.0,112230.0,0.53996]
[1758571534063,1.37882802,112240.0,112230.0,0.53996]
[1758571534266,1.38182802,112240.0,112230.0,0.53796]
[1758571534659,1.38282802,112240.0,112230.0,0.54496]
[1758571535021,1.38282802,112240.0,112230.0,0.53796]
[1758571535149,1.38182802,112240.0,112230.0,0.53796]
[1758571535351,1.38282802,112240.0,112230.0,0.54496]
[1758571536473,0.72729104,112240.0,112230.0,0.25896]
[1758571536664,1.38282802,112240.0,112230.0,0.399]
[1758571536878,1.71059651,112240.0,112230.0,0.49532]
[1758571537070,1.71059651,112240.0,112230.0,0.113]
[1758571537295,1.73695831,112240.0,112230.0,0.399]
[1758571537654,1.74522509,112240.0,112230.0,0.399]
[1758571538058,1.74522509,112240.0,112230.0,0.448536]
[1758571538392,1.71886329,112240.0,112230.0,0.448536]
[1758571538808,1.71886329,112240.0,112230.0,0.162536]
[1758571539011,1.74522509,112240.0,112230.0,0.30084]
[1758571539184,1.76795608,112240.0,112230.0,0.30084]
[1758571539746,1.76795297,112240.0,112230.0,0.30084]
[1758571540605,1.76795297,112240.0,112230.0,0.34056]
[1758571540814,1.74159117,112240.0,112230.0,0.34056]
[1758571541016,2.83652811,112240.0,112230.0,0.113]
[1758571541221,2.86359121,112240.0,112230.0,1e-08]
[1758571541433,0.65178226,112230.0,112220.0,0.10744]
[1758571541632,1.75349206,112230.0,112220.0,0.10744]
[1758571541861,1.78124206,112230.0,112220.0,0.10744]
[1758571541993,1.80803825,112230.0,112220.0,0.10744]
[1758571542859,1.81803825,112230.0,112220.0,0.10944]
[1758571543449,3.75941709,112230.0,112220.0,100.0]
[1758571543868,3.82603669,112230.0,112220.0,100.0]
[1758571544094,3.54107669,112230.0,112220.0,100.0]
[1758571544273,3.82703669,112230.0,112220.0,100.0]
[1758571544884,3.82603669,112230.0,112220.0,100.0]
[1758571545099,3.81703669,112230.0,112220.0,99.998]
[1758571545322,3.53107669,112230.0,112220.0,99.998]
[1758571545526,3.88403669,112230.0,112220.0,99.18223956]
[1758571545730,3.93403669,112230.0,112220.0,99.18223956]
[1758571545932,3.93403669,112230.0,112220.0,99.15823956]
[1758571546552,3.93303669,112230.0,112220.0,98.34247912]
[1758571546750,3.93603669,112230.0,112220.0,98.34247912]
[1758571547614,3.91903669,112230.0,112220.0,98.34247912]
[1758571547857,3.91907669,112230.0,112220.0,98.34247912]
[1758571548058,4.03943669,112230.0,112220.0,98.34247912]
[1758571549416,3.94307669,112230.0,112220.0,98.34247912]
[1758571549620,4.03943669,112230.0,112220.0,98.34247912]
[1758571550966,3.05613122,112230.0,112220.0,98.34247912]
[1758571551387,3.05602815,112230.0,112220.0,98.34247912]
[1758571552166,3.06999913,112230.0,112220.0,98.34247912]
[1758571552639,3.06999913,112230.0,112220.0,98.34251912]
[1758571553232,2.68763913,112230.0,112220.0,98.34251912]
[1758571553483,3.06999913,112230.0,112220.0,98.34251912]
[1758571553708,2.68763913,112230.0,112220.0,98.34251912]
[1758571554163,3.06999913,112230.0,112220.0,98.34251912]
[1758571554382,2.68763913,112230.0,112220.0,98.34251912]
[1758571554860,3.06995913,112230.0,112220.0,98.34251912]
[1758571555116,1.70433366,112230.0,112220.0,98.34251912]
[1758571555335,1.54769877,112230.0,112220.0,98.34251912]
[1758571555574,2.55158657,112230.0,112220.0,98.34251912]
[1758571555791,2.50158657,112230.0,112220.0,98.34251912]
[1758571556038,2.58185967,112230.0,112220.0,98.34251912]
[1758571557266,2.58505956,112230.0,112220.0,98.34251912]
[1758571557509,2.58634956,112230.0,112220.0,98.34251912]
[1758571557689,1.93081258,112230.0,112220.0,98.34251912]
[1758571557916,2.59384956,112230.0,112220.0,98.34251912]
[1758571558332,2.59892956,112230.0,112220.0,98.33671828]
[1758571558537,2.60024956,112230.0,112220.0,98.33671828]
[1758571558692,2.60074956,112230.0,112220.0,98.33671828]
[1758571558891,2.31478956,112230.0,112220.0,98.33671828]
[1758571559091,2.60074956,112230.0,112220.0,98.33671828]
[1758571559921,2.61472036,112230.0,112220.0,98.33671828]
[1758571560239,2.61470307,112230.0,112220.0,98.33671828]
[1758571560858,2.61788307,112230.0,112220.0,98.33671828]
[1758571561062,1.05370867,112230.0,112220.0,98.65020828]
[1758571561279,0.83348447,112230.0,112220.0,98.65020828]
[1758571561471,1.17348447,112230.0,112220.0,98.65020828]
[1758571561680,1.50125296,112230.0,112220.0,98.65020828]
[1758571562743,1.67668396,112230.0,112220.0,98.65020828]
[1758571562961,1.14712267,112230.0,112220.0,98.73547795]
[1758571563179,1.66773525,112230.0,112220.0,98.73547795]
[1758571563396,1.62424525,112230.0,112220.0,98.65020828]
[1758571563739,1.50144925,112230.0,112220.0,98.65020828]
[1758571564556,1.13315187,112230.0,112220.0,98.65020828]
[1758571565196,1.0478822,112230.0,112220.0,98.65020828]
[1758571565576,0.9978822,112230.0,112220.0,98.65020828]
[1758571565760,1.0478822,112230.0,112220.0,98.73547795]
[1758571566199,1.0448822,112230.0,112220.0,98.73547795]
[1758571566404,1.0458822,112230.0,112220.0,98.73647795]
[1758571566595,1.0458822,112230.0,112220.0,98.45051795]
[1758571566970,1.0458822,112230.0,112220.0,98.83279795]
[1758571567300,1.0218822,112230.0,112220.0,98.83279795]
[1758571567628,1.0218822,112230.0,112220.0,98.45051795]
[1758571567829,1.0218822,112230.0,112220.0,98.83279795]
[1758571568039,1.0378822,112230.0,112220.0,98.83379795]
[1758571569777,1.0378822,112230.0,112220.0,98.45151795]
[1758571569977,1.0378822,112230.0,112220.0,98.83375795]
[1758571570457,1.0378822,112230.0,112220.0,98.73739795]
[1758571570676,1.0378822,112230.0,112220.0,98.83375795]
[1758571571360,1.4866822,112230.0,112220.0,98.83375795]
[1758571571560,1.15891371,112230.0,112220.0,98.83375795]
[1758571571831,1.4866822,112230.0,112220.0,98.83375795]
[1758571572051,1.4866822,112230.0,112220.0,98.45151795]
[1758571572210,1.4866822,112230.0,112220.0,98.83375795]
[1758571572211,1.4366822,112230.0,112220.0,98.83375795]
[1758571572409,1.4866822,112230.0,112220.0,98.83375795]
[1758571573461,1.45988601,112230.0,112220.0,98.45151795]
[1758571573711,1.45988601,112230.0,112220.0,98.83375795]
[1758571574478,1.45988601,112230.0,112220.0,98.45151795]
[1758571574856,1.45988601,112230.0,112220.0,98.83371795]
[1758571575821,1.45988601,112230.0,112220.0,98.45151795]
[1758571576023,1.13211752,112230.0,112220.0,98.62762828]
[1758571576241,1.8121745,112230.0,112220.0,98.72398828]
[1758571576440,1.7876545,112230.0,112220.0,98.72398828]
[1758571576609,1.45988601,112230.0,112220.0,98.74764828]
[1758571576829,1.7876545,112230.0,112220.0,98.74764828]
[1758571577033,1.7876545,112230.0,112220.0,98.83291795]
[1758571577196,1.7876545,112230.0,112220.0,98.62762828]
[1758571577402,1.8121745,112230.0,112220.0,98.62762828]
[1758571577843,1.8121745,112230.0,112220.0,98.62758828]
[1758571578039,1.7876545,112230.0,112220.0,98.62758828]
[1758571578371,1.45988601,112230.0,112220.0,98.68613963]
[1758571578855,1.7876545,112230.0,112220.0,98.68613963]
[1758571579071,1.7876545,112230.0,112220.0,98.40033963]
[1758571579358,1.8121745,112230.0,112220.0,98.62451828]
[1758571580171,1.8121745,112230.0,112220.0,98.62756828]
[1758571581768,1.8121745,112230.0,112220.0,98.62451828]
[1758571581996,1.81217129,112230.0,112220.0,98.62451828]
[1758571582204,1.81217129,112230.0,112220.0,98.62756828]
[1758571582383,1.81223163,112230.0,112220.0,98.62756828]
[1758571582818,1.59398476,112230.0,112220.0,98.62752828]
[1758571583358,1.6207784,112230.0,112220.0,98.62752828]
[1758571583531,1.6240084,112230.0,112220.0,98.33871828]
[1758571583738,1.6240084,112230.0,112220.0,98.62447828]
[1758571583939,1.70927807,112230.0,112220.0,98.33871828]
[1758571584147,1.73583616,112230.0,112220.0,98.62447828]
[1758571584353,2.02159616,112230.0,112220.0,98.33871828]
[1758571584554,2.02159616,112230.0,112220.0,98.62447828]
[1758571585655,1.73583616,112230.0,112220.0,98.62447828]
[1758571585836,2.02159616,112230.0,112220.0,98.62447828]
[1758571585990,1.73583616,112230.0,112220.0,98.62447828]
[1758571586197,2.02159616,112230.0,112220.0,98.62447828]
[1758571586798,2.13080616,112230.0,112220.0,98.33871828]
[1758571587046,2.13080616,112230.0,112220.0,98.62447828]
[1758571587553,2.13083872,112230.0,112220.0,98.62447828]
[1758571587852,2.12760872,112230.0,112220.0,98.62447828]
[1758571588081,2.12760872,112230.0,112220.0,98.71275795]
[1758571588082,1.19427052,112230.0,112220.0,98.71275795]
[1758571588287,1.68156063,112230.0,112220.0,98.73657795]
[1758571588479,1.63159291,112230.0,112220.0,98.62748828]
[1758571588688,1.63159291,112230.0,112220.0,98.65130828]
[1758571589284,1.80444291,112230.0,112220.0,98.36554828]
[1758571589618,0.37023313,112230.0,112220.0,98.65130828]
[1758571589826,0.80752324,112230.0,112220.0,98.65130828]
[1758571590025,0.80752324,112230.0,112220.0,98.73657795]
[1758571590232,1.14752324,112230.0,112220.0,98.73657795]
[1758571590766,1.14752324,112230.0,112220.0,98.74766828]
[1758571591442,0.71023313,112230.0,112220.0,98.65126828]
[1758571591674,0.71023313,112230.0,112220.0,98.36554828]
[1758571591868,1.1207296,112230.0,112220.0,98.36554828]
[1758571592079,1.1207296,112230.0,112220.0,98.74762828]
[1758571592361,1.1207296,112230.0,112220.0,98.83289795]
[1758571595664,1.1207296,112230.0,112220.0,98.45081795]
[1758571595864,1.1207296,112230.0,112220.0,98.83289795]
[1758571597141,0.63343949,112230.0,112220.0,98.83289795]
[1758571597350,0.58207368,112230.0,112220.0,99.09638897]
[1758571597566,0.27074654,112230.0,112220.0,99.53367908]
[1758571597777,0.26247673,112230.0,112220.0,99.09638897]
[1758571597996,0.26247673,112230.0,112220.0,98.71430897]
[1758571598213,0.31247673,112230.0,112220.0,99.09634897]
[1758571598432,0.31147673,112230.0,112220.0,99.09534897]
[1758571598901,0.29647673,112230.0,112220.0,99.09534897]
[1758571599120,0.29647673,112230.0,112220.0,98.91712762]
[1758571599268,0.25347673,112230.0,112220.0,98.91812762]
[1758571599474,0.30347673,112230.0,112220.0,99.09634897]
[1758571599847,0.25347673,112230.0,112220.0,99.09634897]
[1758571600270,0.25347673,112230.0,112220.0,98.53608762]
[1758571600608,0.30347673,112230.0,112220.0,98.53608762]
[1758571600954,0.30347673,112230.0,112220.0,98.91808762]
[1758571601163,0.25347673,112230.0,112220.0,98.91808762]
[1758571601390,0.30347673,112230.0,112220.0,98.91808762]
[1758571601593,0.30347673,112230.0,112220.0,98.53608762]
[1758571601815,0.30347673,112230.0,112220.0,98.91808762]
[1758571602263,0.30347673,112230.0,112220.0,98.80899795]
[1758571602264,0.74902947,112230.0,112220.0,98.80899795]
[1758571602466,0.74902947,112230.0,112220.0,98.36554828]
[1758571602677,1.08902947,112230.0,112220.0,98.74754828]
[1758571602877,1.10555282,112230.0,112220.0,98.74754828]
[1758571603120,1.08902947,112230.0,112220.0,98.36554828]
[1758571603328,1.08902947,112230.0,112220.0,98.72071828]
[1758571603329,1.10555232,112230.0,112220.0,98.72071828]
[1758571603538,1.10555232,112230.0,112220.0,98.62435828]
[1758571603539,1.13018232,112230.0,112220.0,98.62435828]
[1758571603752,1.13018232,112230.0,112220.0,98.72071828]
[1758571604041,1.13940798,112230.0,112220.0,98.72071828]
[1758571604438,1.13637798,112230.0,112220.0,98.72071828]
[1758571605916,1.13637798,112230.0,112220.0,98.72067828]
[1758571606118,1.16293607,112230.0,112220.0,98.72067828]
[1758571606344,1.16293607,112230.0,112220.0,98.73090225]
[1758571608088,1.16293607,112230.0,112220.0,98.34894225]
[1758571608287,1.16293684,112230.0,112220.0,98.34894225]
[1758571608519,1.13940875,112230.0,112220.0,98.62431828]
[1758571608696,1.16620261,112230.0,112220.0,98.72067828]
[1758571609262,1.16620261,112230.0,112220.0,98.33871828]
[1758571609486,1.16620261,112230.0,112220.0,98.62431828]
[1758571609946,1.16317261,112230.0,112220.0,98.62431828]
[1758571610414,1.16317261,112230.0,112220.0,98.70958795]
[1758571611579,1.16317261,112230.0,112220.0,98.71259795]
[1758571613469,1.14664899,112230.0,112220.0,98.80891795]
[1758571613704,0.70125143,112230.0,112220.0,98.80891795]
[1758571613854,1.13854154,112230.0,112220.0,98.80891795]
[1758571614288,1.08234588,112230.0,112220.0,98.83273795]
[1758571614490,1.13234588,112230.0,112220.0,98.83273795]
[1758571614694,0.69505577,112230.0,112220.0,98.83273795]
[1758571614898,1.06238933,112230.0,112220.0,98.83273795]
[1758571615065,1.1075607,112230.0,112220.0,98.83273795]
[1758571615259,1.04385926,112230.0,112220.0,98.83273795]
[1758571615476,1.08076684,112230.0,112220.0,98.83273795]
[1758571615680,1.52956684,112230.0,112220.0,98.83273795]
[1758571616120,0.59830536,112230.0,112220.0,98.83273795]
[1758571616319,1.08076684,112230.0,112220.0,98.83273795]
[1758571616540,0.59347673,112230.0,112220.0,98.83273795]
[1758571616968,0.64347673,112230.0,112220.0,98.83273795]
[1758571617276,0.59347673,112230.0,112220.0,98.83273795]
[1758571617698,0.30347673,112230.0,112220.0,98.91800762]
[1758571617921,0.25347673,112230.0,112220.0,99.35529773]
[1758571618121,0.25347673,112230.0,112220.0,98.91800762]
[1758571618246,0.30347673,112230.0,112220.0,98.91800762]
[1758571619284,0.25347673,112230.0,112220.0,99.09622897]
[1758571619482,0.30347673,112230.0,112220.0,99.09622897]
[1758571619654,0.25347673,112230.0,112220.0,99.09622897]
[1758571619855,0.30347673,112230.0,112220.0,98.71430897]
[1758571620289,0.30347673,112230.0,112220.0,98.82160762]
[1758571620431,0.30347673,112230.0,112220.0,98.82156762]
[1758571620634,0.30347673,112230.0,112220.0,98.91792762]
[1758571621335,0.25347673,112230.0,112220.0,99.09614897]
[1758571621538,0.07527126,112230.0,112220.0,99.09614897]
[1758571621779,0.03009989,112230.0,112220.0,99.53343908]
[1758571621953,0.08009989,112230.0,112220.0,99.53343908]
[1758571622721,0.08009989,112230.0,112220.0,99.15159908]
[1758571622900,0.08009989,112230.0,112220.0,99.53343908]
[1758571623202,0.08009989,112230.0,112220.0,99.15159908]
[1758571623436,0.25830536,112230.0,112220.0,98.53608762]
[1758571623643,0.74076684,112230.0,112220.0,98.91792762]
[1758571623828,0.30347673,112230.0,112220.0,98.91792762]
[1758571624002,0.30347673,112230.0,112220.0,99.09614897]
[1758571624180,0.74076684,112230.0,112220.0,98.82156762]
[1758571624381,0.74076684,112230.0,112220.0,98.51226762]
[1758571624585,0.30347673,112230.0,112220.0,98.91860762]
[1758571625023,0.30347673,112230.0,112220.0,98.53680762]
[1758571625184,0.74076684,112230.0,112220.0,98.91860762]
[1758571625602,0.74076684,112230.0,112220.0,98.42699795]
[1758571625828,0.76425684,112230.0,112220.0,98.80879795]
[1758571626045,0.74076684,112230.0,112220.0,98.71243795]
[1758571626193,0.74076684,112230.0,112220.0,98.80879795]
[1758571627521,0.74076684,112230.0,112220.0,98.42699795]
[1758571627664,0.74076684,112230.0,112220.0,98.80879795]
[1758571628268,0.74076684,112230.0,112220.0,98.83333795]
[1758571628670,0.74076684,112230.0,112220.0,98.80879795]
[1758571628897,0.74076684,112230.0,112220.0,98.42699795]
[1758571629224,0.30347673,112230.0,112220.0,98.80871795]
[1758571629362,0.74076684,112230.0,112220.0,98.71239795]
[1758571629575,0.30347673,112230.0,112220.0,98.83325795]
[1758571629777,0.30347673,112230.0,112220.0,98.45153795]
[1758571629976,0.25830536,112230.0,112220.0,98.83325795]
[1758571630197,0.30347673,112230.0,112220.0,98.91852762]
[1758571630787,0.12527126,112230.0,112220.0,99.09674897]
[1758571630995,0.03009989,112230.0,112220.0,99.09674897]
[1758571631255,0.25347673,112230.0,112220.0,99.09674897]
[1758571631392,0.30347673,112230.0,112220.0,98.91848762]
[1758571631996,0.25347673,112230.0,112220.0,98.91848762]
[1758571632195,0.30347673,112230.0,112220.0,99.35577773]
[1758571632648,0.30347673,112230.0,112220.0,98.97409773]
[1758571632999,0.30347673,112230.0,112220.0,99.53399908]
[1758571633207,0.07527126,112230.0,112220.0,99.53399908]
[1758571633624,0.03009989,112230.0,112220.0,99.53399908]
[1758571636059,0.03009989,112230.0,112220.0,99.54284145]
[1758571637055,0.20830536,112230.0,112220.0,99.53395908]
[1758571639787,0.20830536,112230.0,112220.0,99.54278214]
[1758571640774,0.03009989,112230.0,112220.0,99.54278214]
[1758571642377,0.20830536,112230.0,112220.0,99.10549203]
[1758571642582,0.20830536,112230.0,112220.0,99.15231908]
[1758571642798,0.20830536,112230.0,112220.0,99.75206825]
[1758571643008,0.03009989,112230.0,112220.0,99.76116479]
[1758571643403,0.20830536,112230.0,112220.0,99.66480479]
[1758571643627,0.20830536,112230.0,112220.0,99.76112479]
[1758571644062,0.03009989,112230.0,112220.0,99.76112479]
[1758571647615,0.20830536,112230.0,112220.0,99.76112479]
[1758571648682,0.03009989,112230.0,112220.0,99.76112479]
[1758571648856,0.20830536,112230.0,112220.0,99.37956479]
[1758571649092,0.20830536,112230.0,112220.0,99.37046825]
[1758571649303,0.20830536,112230.0,112220.0,99.75198825]
[1758571650815,0.20830536,112230.0,112220.0,99.37046825]
[1758571651225,0.20830536,112230.0,112220.0,99.75194825]
[1758571652932,0.03009989,112230.0,112220.0,99.75194825]
[1758571653940,0.03009989,112230.0,112220.0,99.76070131]
[1758571660642,0.20830536,112230.0,112220.0,99.65554825]
[1758571660872,0.20830536,112230.0,112220.0,99.75186825]
[1758571661957,0.03009989,112230.0,112220.0,99.75186825]
[1758571663921,0.03009989,112230.0,112220.0,100.07958789]
[1758571664846,0.03009989,112230.0,112220.0,100.08841379]
[1758571665044,0.02309989,112230.0,112220.0,100.08741379]
[1758571665245,0.02309989,112230.0,112220.0,100.08941379]
[1758571665462,0.02609989,112230.0,112220.0,100.08841379]
[1758571665840,0.02709989,112230.0,112220.0,100.43341379]
[1758571666252,0.02609989,112230.0,112220.0,100.42841379]
[1758571666680,0.02709989,112230.0,112220.0,100.43541379]
[1758571669587,0.02709989,112230.0,112220.0,100.52931379]
[1758571670038,0.02709989,112230.0,112220.0,100.14791379]
[1758571670243,0.02709989,112230.0,112220.0,100.91455379]
[1758571673176,0.02709989,112230.0,112220.0,100.43283379]
[1758571673400,0.02709989,112230.0,112220.0,100.14791379]
[1758571673803,0.02709989,112230.0,112220.0,100.91447379]
[1758571679729,0.02606515,112230.0,112220.0,100.91447379]
[1758571679946,0.09804598,112260.0,112250.0,0.17817371]
[1758571680150,0.07126631,112260.0,112250.0,1.33767762]
[1758571680365,0.38339756,112280.0,112260.0,0.17815784]
[1758571680571,0.38348134,112280.0,112270.0,0.4308035]
[1758571680794,0.38561134,112280.0,112270.0,0.41298931]
[1758571680991,0.38561134,112280.0,112270.0,0.79410931]
[1758571681228,0.38561134,112280.0,112270.0,0.87937898]
[1758571681229,0.41003134,112280.0,112270.0,0.87937898]
[1758571681410,0.33876503,112280.0,112270.0,0.87937898]
[1758571681619,0.35674199,112280.0,112270.0,0.87837898]
[1758571681874,0.34774199,112280.0,112270.0,0.61754944]
[1758571682121,0.35674199,112280.0,112270.0,0.94726908]
[1758571682710,0.35774199,112280.0,112270.0,0.95126908]
[1758571683288,0.34876503,112280.0,112270.0,0.95126908]
[1758571683551,0.34876503,112280.0,112270.0,0.95122908]
[1758571684331,0.34876503,112280.0,112270.0,0.52718944]
[1758571684534,0.34876503,112280.0,112270.0,0.24242944]
[1758571684994,0.35765443,112280.0,112270.0,0.44191977]
[1758571685196,0.35765443,112280.0,112270.0,0.53823977]
[1758571685847,0.35765443,112280.0,112270.0,0.15715977]
[1758571686047,0.35765443,112280.0,112270.0,0.44187977]
[1758571686250,0.35765443,112280.0,112270.0,0.53819977]
[1758571686424,0.35765443,112280.0,112270.0,0.95118908]
[1758571686845,0.34876503,112280.0,112270.0,0.95118908]
[1758571687071,0.34561503,112280.0,112270.0,1.13137105]
[1758571687326,0.29561503,112280.0,112270.0,1.13137105]
[1758571687496,0.16748892,112280.0,112270.0,1.13137105]
[1758571687731,0.34561503,112280.0,112270.0,1.13137105]
[1758571689291,0.32119503,112280.0,112270.0,1.13137105]
[1758571689498,0.34561503,112280.0,112270.0,1.13137105]
[1758571689702,0.34561503,112280.0,112270.0,0.95322908]
[1758571692249,0.35388615,112280.0,112270.0,0.95322908]
[1758571692904,0.32733615,112280.0,112270.0,0.95617908]
[1758571693110,0.35175615,112280.0,112270.0,0.95617908]
[1758571693309,0.35388615,112280.0,112270.0,0.95617908]
[1758571694060,0.32946615,112280.0,112270.0,0.24242944]
[1758571694205,0.35703615,112280.0,112270.0,0.53807977]
[1758571695071,0.32946615,112280.0,112270.0,0.86779941]
[1758571695252,0.32733615,112280.0,112270.0,0.87091941]
[1758571695454,0.32734219,112280.0,112270.0,0.87091941]
[1758571695739,0.35139219,112280.0,112270.0,0.87091941]
[1758571695958,0.35139219,112280.0,112270.0,0.95618908]
[1758571696135,0.35354219,112280.0,112270.0,0.57214908]
[1758571696543,0.35354219,112280.0,112270.0,0.95302908]
[1758571696903,0.35354219,112280.0,112270.0,0.62530944]
[1758571697113,0.35354219,112280.0,112270.0,0.95302908]
[1758571697315,0.35354219,112280.0,112270.0,0.57214908]
[1758571697723,0.35354219,112280.0,112270.0,0.95298908]